bitfinex/quotes_SOLUSD_20250330
["timestamp","ask_amount","ask_price","bid_price","bid_amount"]
[1743348312097,63.72047323,125.46,125.45,0.063]
[1743348312298,39.75047323,125.46,125.45,0.063]
[1743348313925,20.67433966,125.46,125.45,0.063]
[1743348315223,7.9705,125.47,125.45,0.063]
[1743348315424,7.9693,125.48,125.45,0.063]
[1743348315633,20.67303966,125.48,125.45,0.063]
[1743348315930,12.70373966,125.47,125.45,0.063]
[1743348317611,20.67303966,125.48,125.45,0.063]
[1743348317818,22.29803966,125.49,125.45,0.063]
[1743348318431,12.70373966,125.48,125.45,0.063]
[1743348319132,20.67313966,125.48,125.45,0.063]
[1743348319428,102.57313966,125.48,125.45,0.063]
[1743348321133,20.67383966,125.47,125.45,0.063]
[1743348321326,12.70373966,125.46,125.45,0.063]
[1743348321713,20.67383966,125.47,125.45,0.063]
[1743348324126,103.00082437,125.46,125.45,0.063]
[1743348324336,103.00082437,125.46,125.38,8.1617]
[1743348324630,12.70373966,125.44,125.38,8.1617]
[1743348325212,20.67583966,125.44,125.39,7.9751]
[1743348328836,12.70373966,125.44,125.39,7.9751]
[1743348330436,102.57523966,125.45,125.39,7.9751]
[1743348335141,102.57523966,125.45,125.39,8.0051]
[1743348335944,102.63823966,125.45,125.39,8.0051]
[1743348340644,94.66673966,125.45,125.39,27.9428]
[1743348340847,81.963,125.45,125.39,27.9428]
[1743348341535,94.66673966,125.45,125.39,27.9428]
[1743348342252,102.63813966,125.45,125.39,27.9428]
[1743348343362,102.63813966,125.45,125.39,8.0051]
[1743348343532,12.70373966,125.44,125.39,8.0051]
[1743348344971,20.67563966,125.44,125.39,8.0051]
[1743348348862,102.63823966,125.45,125.39,8.0051]
[1743348349157,81.963,125.45,125.39,8.0051]
[1743348349559,81.963,125.45,125.39,27.9428]
[1743348349954,102.63813966,125.45,125.39,27.9428]
[1743348350542,81.963,125.45,125.39,27.9428]
[1743348356477,12.70373966,125.41,125.39,0.03]
[1743348356774,12.70373966,125.4,125.39,0.03]
[1743348357275,1.5345,125.41,125.39,0.03]
[1743348361869,12.70373966,125.4,125.39,0.03]
[1743348362065,22.21203966,125.41,125.39,0.03]
[1743348366484,81.9,125.4,125.39,0.03]
[1743348366682,39.07613357,125.38,125.37,0.063]
[1743348366876,51.77987323,125.38,125.37,0.063]
[1743348368186,59.75557323,125.38,125.37,0.063]
[1743348368368,20.61063357,125.37,125.32,0.063]
[1743348368686,33.31437323,125.37,125.32,0.063]
[1743348369486,20.0,125.38,125.32,0.063]
[1743348369786,20.67903966,125.39,125.32,0.063]
[1743348370690,12.70373966,125.38,125.32,8.0425]
[1743348373290,40.68003966,125.37,125.32,8.0425]
[1743348373468,20.68003966,125.37,125.32,8.0425]
[1743348373669,27.9763,125.37,125.32,8.0425]
[1743348375202,81.9,125.36,125.32,8.0425]
[1743348376476,102.58073966,125.36,125.32,0.063]
[1743348376793,12.70373966,125.35,125.32,0.063]
[1743348376990,104.22243966,125.36,125.32,0.063]
[1743348377499,81.9,125.36,125.32,0.063]
[1743348377890,81.9,125.36,125.32,7.143]
[1743348379690,81.9,125.36,125.33,7.9789]
[1743348381204,20.0,125.37,125.33,7.9789]
[1743348383516,27.9764,125.37,125.33,7.9789]
[1743348383803,0.063,125.36,125.32,15.1223]
[1743348386381,0.063,125.36,125.32,7.143]
[1743348387612,0.063,125.36,125.32,15.1225]
[1743348392609,0.063,125.36,125.32,0.063]
[1743348394683,0.063,125.36,125.32,8.0425]
[1743348406353,12.76673966,125.36,125.32,0.063]
[1743348408039,20.74383966,125.36,125.32,0.063]
[1743348410056,12.70373966,125.35,125.32,0.063]
[1743348410358,31.77987323,125.35,125.32,0.063]
[1743348410557,55.77987323,125.35,125.32,0.063]
[1743348410856,31.77987323,125.35,125.32,0.063]
[1743348411947,39.75747323,125.35,125.32,0.063]
[1743348415864,19.07613357,125.34,125.32,0.063]
[1743348416167,12.70373966,125.33,125.32,0.063]
[1743348417059,20.68263966,125.33,125.32,0.063]
[1743348418551,39.75877323,125.33,125.32,0.063]
[1743348419156,43.78995823,125.33,125.32,0.063]
[1743348419929,39.75877323,125.33,125.32,0.063]
[1743348420662,31.77987323,125.33,125.32,0.063]
[1743348422174,12.47336866,125.34,125.32,0.063]
[1743348422637,94.37336866,125.34,125.32,0.063]
[1743348422842,107.07710832,125.34,125.32,0.063]
[1743348423262,94.60373966,125.34,125.32,0.063]
[1743348424439,102.58203966,125.34,125.32,0.063]
[1743348424946,12.70373966,125.33,125.32,0.063]
[1743348425162,20.68263966,125.33,125.32,0.063]
[1743348426061,12.70373966,125.33,125.32,0.063]
[1743348427261,20.68263966,125.33,125.32,0.063]
[1743348427973,121.65877323,125.33,125.32,0.063]
[1743348428145,108.95503357,125.33,125.32,0.063]
[1743348428351,121.65877323,125.33,125.32,0.063]
[1743348428666,113.67987323,125.33,125.32,0.063]
[1743348431280,121.65877323,125.33,125.32,0.063]
[1743348432267,81.9,125.33,125.32,0.063]
[1743348432661,0.063,125.34,125.32,0.063]
[1743348450369,0.063,125.34,125.32,0.20516157]
[1743348450778,0.063,125.34,125.33,7.9789]
[1743348456499,0.063,125.34,125.33,8.12106157]
[1743348464404,0.063,125.34,125.33,8.15106157]
[1743348466603,0.063,125.34,125.33,8.0089]
[1743348469086,0.063,125.34,125.33,0.03]
[1743348472019,0.063,125.34,125.33,8.0089]
[1743348475092,0.063,125.34,125.33,0.03]
[1743348475689,12.76673966,125.34,125.33,0.03]
[1743348477912,41.48187323,125.34,125.33,0.03]
[1743348479892,14.42753966,125.34,125.33,0.03]
[1743348480091,1.7238,125.34,125.33,0.03]
[1743348480406,14.42753966,125.34,125.33,0.03]
[1743348481508,22.40573966,125.34,125.33,0.03]
[1743348483405,14.42753966,125.34,125.33,0.03]
[1743348484226,22.40573966,125.34,125.33,0.03]
[1743348485108,14.42753966,125.34,125.33,0.03]
[1743348485302,0.063,125.34,125.33,0.03]
[1743348494339,12.76673966,125.34,125.33,0.03]
[1743348496725,31.41638852,125.34,125.33,0.03]
[1743348497337,39.39458852,125.34,125.33,0.03]
[1743348498416,39.82107323,125.34,125.33,0.03]
[1743348499229,41.40747323,125.34,125.33,0.03]
[1743348499432,92.22243187,125.34,125.33,0.03]
[1743348500934,116.22243187,125.34,125.33,0.03]
[1743348501142,27.07013357,125.33,125.32,0.063]
[1743348501444,39.77387323,125.33,125.32,0.063]
[1743348503435,47.75277323,125.33,125.31,0.063]
[1743348503640,31.35338852,125.32,125.31,0.063]
[1743348503842,31.77987323,125.32,125.31,0.063]
[1743348504026,31.77987323,125.32,125.29,0.063]
[1743348504027,18.79181043,125.31,125.29,0.063]
[1743348504229,39.34738852,125.3,125.29,0.063]
[1743348505634,47.32818852,125.3,125.29,0.063]
[1743348505838,38.64964886,125.28,125.27,0.063]
[1743348506031,51.35338852,125.28,125.27,0.063]
[1743348508147,59.33548852,125.28,125.27,0.063]
[1743348510046,141.23548852,125.28,125.27,0.063]
[1743348510545,141.66197323,125.28,125.27,0.063]
[1743348510848,117.65693187,125.28,125.27,0.063]
[1743348511239,121.60285844,125.28,125.27,0.063]
[1743348513725,20.0,125.25,125.24,0.063]
[1743348513933,101.9,125.25,125.23,0.063]
[1743348514251,12.70373966,125.24,125.23,0.063]
[1743348515453,114.60373966,125.25,125.23,0.063]
[1743348515752,101.9,125.25,125.23,0.063]
[1743348518458,114.60373966,125.25,125.23,0.063]
[1743348520056,31.35338852,125.24,125.21,0.03]
[1743348520267,12.70373966,125.23,125.21,0.03]
[1743348523647,94.60373966,125.24,125.21,0.03]
[1743348528162,12.70373966,125.23,125.21,0.03]
[1743348529855,12.70373966,125.22,125.21,0.03]
[1743348542268,94.60373966,125.23,125.21,0.03]
[1743348542462,12.76673966,125.24,125.21,0.03]
[1743348554485,12.70373966,125.23,125.21,0.03]
[1743348555079,12.76673966,125.24,125.21,0.03]
[1743348557486,0.063,125.24,125.21,0.03]
[1743348557687,12.76673966,125.24,125.21,0.03]
[1743348558078,0.063,125.24,125.21,0.03]
[1743348561894,0.063,125.24,125.21,8.0165]
[1743348562893,0.063,125.24,125.22,6.2111]
[1743348564206,0.063,125.24,125.23,7.9853]
[1743348564904,0.063,125.24,125.23,9.69236157]
[1743348565080,0.063,125.24,125.23,28.76849514]
[1743348568283,0.063,125.24,125.23,10.11884628]
[1743348568485,0.063,125.24,125.23,28.76849514]
[1743348569789,12.70373966,125.31,125.24,0.14216157]
[1743348569985,12.70373966,125.31,125.25,7.06]
[1743348570715,1.6221,125.32,125.26,0.14216157]
[1743348571004,94.60373966,125.33,125.26,0.14216157]
[1743348571318,12.76673966,125.34,125.26,25.79529514]
[1743348572090,12.76673966,125.34,125.27,27.9395]
[1743348572592,0.063,125.33,125.27,27.9395]
[1743348572807,0.063,125.33,125.27,29.5044]
[1743348577507,0.063,125.33,125.29,7.9814]
[1743348578210,0.063,125.33,125.29,15.0414]
[1743348578427,0.063,125.33,125.29,34.9951]
[1743348578590,0.063,125.33,125.3,0.14216157]
[1743348579610,0.063,125.33,125.31,7.9802]
[1743348585318,0.063,125.33,125.3,7.9808]
[1743348586831,0.063,125.33,125.29,7.9814]
[1743348588106,0.063,125.33,125.29,15.0414]
[1743348589128,12.76673966,125.33,125.29,15.0414]
[1743348600538,0.063,125.33,125.29,15.0414]
[1743348604442,20.74573966,125.33,125.29,7.06]
[1743348604624,20.74573966,125.33,125.29,15.0414]
[1743348604935,12.76673966,125.33,125.29,15.0414]
[1743348607733,0.063,125.33,125.29,15.0414]
[1743348608629,0.063,125.33,125.29,34.9951]
[1743348608833,0.063,125.33,125.3,18.933972]
[1743348609022,0.063,125.33,125.3,25.259872]
[1743348609735,0.063,125.33,125.32,8.12166157]
[1743348610117,0.063,125.33,125.32,28.76619514]
[1743348610323,0.063,125.36,125.34,0.14216157]
[1743348610512,0.063,125.36,125.35,13.98412314]
[1743348611423,0.0001,125.36,125.35,32.91809514]
[1743348612042,0.0001,125.36,125.35,40.89569514]
[1743348618033,0.0001,125.36,125.35,34.25589514]
[1743348619438,0.0001,125.36,125.35,8.11976157]
[1743348619636,0.0001,125.36,125.35,15.17976157]
[1743348620641,0.0001,125.36,125.35,15.20976157]
[1743348621335,0.0001,125.36,125.35,15.63624628]
[1743348623149,0.0001,125.36,125.35,0.03]
[1743348624843,0.0001,125.36,125.35,0.17216157]
[1743348625347,0.0001,125.36,125.35,8.14976157]
[1743348627944,0.0001,125.36,125.35,27.22589514]
[1743348631848,0.0001,125.36,125.35,0.03]
[1743348640755,12.70383966,125.36,125.35,0.03]
[1743348641537,20.68083966,125.36,125.35,0.03]
[1743348642337,39.61481166,125.36,125.35,0.03]
[1743348642535,39.61481166,125.36,125.29,7.04]
[1743348642536,26.1974,125.33,125.29,7.04]
[1743348642852,26.1974,125.33,125.26,7.04]
[1743348642853,12.70373966,125.3,125.26,7.04]
[1743348643039,1.6525,125.31,125.26,7.04]
[1743348643763,1.6525,125.31,125.27,7.9827]
[1743348644239,1.6525,125.31,125.28,7.04]
[1743348646464,1.6525,125.31,125.28,15.0221]
[1743348647381,81.9,125.33,125.28,15.0221]
[1743348647665,14.35623966,125.34,125.28,34.9774]
[1743348648663,12.70373966,125.33,125.28,34.9774]
[1743348649167,12.70373966,125.32,125.28,7.04]
[1743348649353,12.70373966,125.31,125.28,7.04]
[1743348649661,12.70373966,125.32,125.28,15.022]
[1743348649963,12.70373966,125.29,125.25,7.04]
[1743348650955,12.70373966,125.29,125.26,7.04]
[1743348651344,12.70373966,125.3,125.26,7.04]
[1743348651854,12.70373966,125.29,125.26,7.04]
[1743348652857,12.70373966,125.29,125.26,15.0228]
[1743348653058,12.70373966,125.29,125.26,7.9828]
[1743348656577,12.70373966,125.29,125.26,8.0128]
[1743348657094,12.70373966,125.29,125.26,0.03]
[1743348659054,12.70373966,125.31,125.26,0.03]
[1743348659479,18.90113966,125.32,125.26,0.17216157]
[1743348660372,6.1974,125.32,125.26,0.17216157]
[1743348660575,12.70373966,125.32,125.27,7.9827]
[1743348660883,12.70373966,125.33,125.28,0.14216157]
[1743348661100,12.70373966,125.33,125.29,7.04]
[1743348662071,14.35623966,125.34,125.29,7.04]
[1743348662379,12.70373966,125.33,125.29,7.04]
[1743348662583,12.70373966,125.33,125.29,15.021]
[1743348668488,12.70373966,125.31,125.29,7.04]
[1743348669280,12.70373966,125.32,125.29,15.0213]
[1743348669889,12.70373966,125.33,125.29,15.0213]
[1743348670090,12.70373966,125.32,125.29,15.0213]
[1743348671893,12.70373966,125.32,125.29,7.04]
[1743348672700,12.70373966,125.31,125.29,7.04]
[1743348673077,12.70373966,125.31,125.28,0.03]
[1743348675006,12.70373966,125.32,125.28,8.0121]
[1743348678401,12.70373966,125.33,125.28,27.9674]
[1743348678604,12.76673966,125.35,125.28,27.9674]
[1743348679121,12.76673966,125.35,125.29,0.14216157]
[1743348679418,0.063,125.35,125.29,19.21829514]
[1743348680290,0.063,125.35,125.31,0.14216157]
[1743348680523,0.063,125.35,125.32,7.04]
[1743348682612,0.063,125.35,125.33,7.9789]
[1743348685312,0.063,125.35,125.34,0.14216157]
[1743348685609,0.063,125.35,125.34,19.21829514]
[1743348686115,0.063,125.35,125.34,27.19649514]
[1743348688611,0.063,125.35,125.34,8.54684628]
[1743348693303,0.063,125.35,125.34,7.9782]
[1743348693900,0.063,125.35,125.34,15.0182]
[1743348694695,0.063,125.35,125.31,19.9492]
[1743348694912,12.70373966,125.34,125.3,15.0208]
[1743348695219,12.70373966,125.33,125.3,15.0208]
[1743348697223,12.70373966,125.34,125.3,15.0208]
[1743348699725,12.70373966,125.31,125.28,8.0118]
[1743348699923,12.70373966,125.3,125.28,8.0118]
[1743348700925,12.70373966,125.31,125.28,0.03]
[1743348701121,19.35953966,125.32,125.28,0.03]
[1743348702729,12.70373966,125.32,125.28,0.03]
[1743348703632,12.70373966,125.33,125.28,0.03]
[1743348707830,12.70373966,125.32,125.28,0.03]
[1743348712921,12.70373966,125.33,125.28,0.03]
[1743348713935,12.70373966,125.34,125.28,0.17216157]
[1743348714128,0.063,125.35,125.31,20.0]
[1743348714326,0.063,125.35,125.32,7.18216157]
[1743348714539,0.063,125.35,125.33,7.9789]
[1743348715413,12.76673966,125.35,125.32,7.04]
[1743348715611,12.76673966,125.35,125.32,15.0194]
[1743348716033,0.063,125.35,125.32,15.0194]
[1743348720035,0.063,125.35,125.32,34.9683]
[1743348720418,0.063,125.35,125.33,0.14216157]
[1743348720733,0.063,125.35,125.34,7.9782]
[1743348722522,0.063,125.35,125.34,8.12036157]
[1743348724335,0.063,125.35,125.34,27.19649514]
[1743348726033,0.063,125.35,125.34,8.12036157]
[1743348728215,0.063,125.35,125.34,8.54684628]
[1743348729842,0.0001,125.36,125.35,8.11976157]
[1743348735448,0.0001,125.36,125.35,27.19589514]
[1743348739985,0.0001,125.36,125.35,27.22589514]
[1743348744696,0.0001,125.36,125.35,162.72589514]
[1743348744995,0.0001,125.36,125.35,163.22589514]
[1743348746066,0.0001,125.36,125.35,170.26589514]
[1743348747194,0.063,125.37,125.35,170.26589514]
[1743348747398,0.063,125.37,125.36,0.28432314]
[1743348749604,0.063,125.37,125.36,8.40348471]
[1743348750287,0.063,125.42,125.38,0.28432314]
[1743348750505,0.063,125.42,125.4,0.42648471]
[1743348751793,0.063,125.42,125.41,7.9738]
[1743348756008,0.063,125.42,125.41,8.40028471]
[1743348763412,0.063,125.42,125.41,27.19209514]
[1743348768520,0.063,125.42,125.41,8.54244628]
[1743348772434,0.063,125.42,125.39,135.5]
[1743348772726,0.063,125.42,125.38,14.9957]
[1743348774038,12.76673966,125.42,125.38,14.9957]
[1743348774241,12.76673966,125.42,125.38,7.9757]
[1743348776739,0.063,125.42,125.38,7.9757]
[1743348777743,0.063,125.42,125.38,27.915]
[1743348778239,0.063,125.42,125.39,19.21829514]
[1743348778820,0.063,125.42,125.41,0.42648471]
[1743348779127,0.063,125.42,125.41,7.46648471]
[1743348780838,0.063,125.42,125.41,34.23209514]
[1743348786150,0.063,125.45,125.43,0.42648471]
[1743348786355,0.063,125.45,125.44,39.21829514]
[1743348788029,0.063,125.45,125.44,47.19019514]
[1743348795257,0.0001,125.45,125.44,47.19019514]
[1743348795558,0.0001,125.47,125.45,19.21829514]
[1743348795851,0.0001,125.47,125.46,34.20889514]
[1743348796033,0.0001,125.47,125.46,169.70889514]
[1743348799435,0.0001,125.47,125.46,8.11276157]
[1743348799635,0.0001,125.47,125.46,7.9706]
[1743348805271,0.0001,125.47,125.46,8.39708471]
[1743348806970,0.0001,125.47,125.45,14.991]
[1743348809472,0.0001,125.47,125.46,0.42648471]
[1743348810552,0.0001,125.47,125.46,27.18889514]
[1743348811976,0.0001,125.47,125.46,8.39708471]
[1743348812473,0.0001,125.47,125.46,7.9706]
[1743348824984,0.0001,125.47,125.46,8.0006]
[1743348826780,12.70383966,125.47,125.46,0.03]
[1743348827583,20.67383966,125.47,125.46,0.03]
[1743348828673,12.70383966,125.47,125.46,0.03]
[1743348830599,20.67383966,125.47,125.46,0.03]
[1743348832791,12.70383966,125.47,125.46,0.03]
[1743348832993,20.67383966,125.47,125.46,0.03]
[1743348838616,90.28060873,125.47,125.46,0.03]
[1743348838832,20.0,125.43,125.37,7.05]
[1743348838992,12.70373966,125.4,125.37,0.03]
[1743348839625,12.70373966,125.4,125.37,8.0061]
[1743348840196,12.70373966,125.41,125.37,8.0061]
[1743348848532,12.70373966,125.4,125.37,8.0061]
[1743348850133,12.70373966,125.38,125.37,0.03]
[1743348856634,22.21553966,125.38,125.37,0.03]
[1743348856836,47.22885009,125.38,125.37,0.03]
[1743348858139,28.57920123,125.38,125.37,0.03]
[1743348858347,47.22885009,125.38,125.37,0.03]
[1743348860543,14.23983966,125.38,125.37,0.03]
[1743348860723,6.2215,125.41,125.37,0.03]
[1743348860923,12.70373966,125.38,125.37,0.03]
[1743348866559,20.67943966,125.38,125.37,0.03]
[1743348872334,39.47125009,125.38,125.37,0.03]
[1743348873663,47.46525009,125.38,125.37,0.03]
[1743348876362,28.67343966,125.38,125.37,0.03]
[1743348876569,20.67943966,125.38,125.37,0.03]
[1743348877349,12.70373966,125.38,125.37,0.03]
[1743348885874,32.70373966,125.39,125.37,0.03]
[1743348888572,12.70373966,125.39,125.37,0.03]
[1743348891572,12.70373966,125.38,125.37,0.03]
[1743348896266,12.70373966,125.39,125.37,0.03]
[1743348899884,12.70373966,125.38,125.37,0.03]
[1743348900581,31.49555009,125.38,125.37,0.03]
[1743348900886,39.47125009,125.38,125.37,0.03]
[1743348901490,20.67943966,125.38,125.37,0.03]
[1743348903294,12.70373966,125.38,125.37,0.03]
[1743348903771,20.67943966,125.38,125.37,0.03]
[1743348906278,38.79181043,125.36,125.35,0.03]
[1743348906475,51.49555009,125.36,125.35,0.03]
[1743348907904,32.84590123,125.36,125.35,0.03]
[1743348908109,51.49555009,125.36,125.35,0.03]
[1743348908701,59.47255009,125.36,125.35,0.03]
[1743348908899,0.28432314,125.34,125.33,0.03]
[1743348909081,63.5186983,125.34,125.33,0.03]
[1743348910101,20.68193966,125.34,125.33,0.03]
[1743348910683,90.28870873,125.34,125.33,0.03]
[1743348910885,90.57303187,125.34,125.33,0.03]
[1743348916813,90.28870873,125.34,125.33,0.03]
[1743348917494,90.57303187,125.34,125.33,0.03]
[1743348917909,0.28432314,125.33,125.32,0.03]
[1743348918107,12.9880628,125.33,125.32,0.03]
[1743348919303,20.9669628,125.33,125.32,0.03]
[1743348922721,82.31050873,125.29,125.28,0.03]
[1743348923017,20.0,125.27,125.26,0.03]
[1743348923226,32.70373966,125.27,125.26,0.03]
[1743348927124,47.19683041,125.27,125.26,0.03]
[1743348927828,0.14216157,125.26,125.24,0.03]
[1743348928024,31.77987323,125.25,125.24,0.03]
[1743348928505,39.76387323,125.25,125.24,0.03]
[1743348929130,31.77987323,125.25,125.24,0.03]
[1743348929727,39.76387323,125.25,125.24,0.03]
[1743348929945,31.77987323,125.25,125.24,0.03]
[1743348930934,39.76387323,125.25,125.24,0.03]
[1743348931752,31.77987323,125.25,125.24,0.03]
[1743348932241,39.76387323,125.25,125.24,0.03]
[1743348932942,39.76387323,125.25,125.22,0.03]
[1743348933136,32.70373966,125.23,125.22,0.03]
[1743348933734,32.70373966,125.23,125.2,0.5199824]
[1743348933735,20.0,125.21,125.2,0.5199824]
[1743348933952,32.70373966,125.21,125.2,0.5199824]
[1743348935239,40.69023966,125.21,125.2,0.5199824]
[1743348935748,59.76637323,125.21,125.2,0.5199824]
[1743348936535,59.76637323,125.21,125.15,0.03]
[1743348936732,12.70373966,125.16,125.15,0.03]
[1743348937932,63.5186983,125.16,125.15,0.03]
[1743348938135,90.58453187,125.16,125.15,0.03]
[1743348938658,82.59483187,125.16,125.15,0.03]
[1743348938837,12.70373966,125.16,125.15,0.03]
[1743348940945,12.70373966,125.16,125.13,7.8715]
[1743348941151,12.70373966,125.15,125.13,7.8715]
[1743348941768,12.70373966,125.15,125.13,15.8629]
[1743348942657,12.70373966,125.15,125.13,7.8715]
[1743348943559,12.70373966,125.15,125.13,15.8628]
[1743348944257,12.70373966,125.15,125.13,9.6644]
[1743348944561,12.70373966,125.14,125.13,0.03]
[1743348950177,32.70373966,125.15,125.13,0.03]
[1743348951149,12.70373966,125.14,125.13,0.03]
[1743348951681,108.836972,125.18,125.13,0.03]
[1743348951975,0.063,125.15,125.13,0.03]
[1743348955858,12.76673966,125.15,125.13,0.03]
[1743348956090,12.70373966,125.14,125.13,0.03]
[1743348963881,0.063,125.15,125.13,0.03]
[1743348965874,0.063,125.15,125.13,8.0216]
[1743348967585,0.063,125.15,125.13,0.03]
[1743348967782,12.70373966,125.14,125.13,0.03]
[1743348969688,12.76673966,125.15,125.13,0.03]
[1743348972100,12.70373966,125.14,125.13,0.03]
[1743349002827,39.77087323,125.14,125.13,0.03]
[1743349003007,12.70373966,125.11,125.08,9.5233]
[1743349006114,12.70373966,125.1,125.08,9.5233]
[1743349006536,12.70373966,125.12,125.08,9.5233]
[1743349007136,12.70373966,125.11,125.08,9.5233]
[1743349010534,12.70373966,125.11,125.08,9.5533]
[1743349015338,12.70373966,125.12,125.08,9.5533]
[1743349015716,12.76673966,125.13,125.08,9.5533]
[1743349016538,12.76673966,125.13,125.08,29.5405]
[1743349017016,0.063,125.13,125.09,7.02]
[1743349018743,0.063,125.13,125.1,7.9936]
[1743349020448,0.063,125.13,125.1,27.9776]
[1743349022631,0.063,125.13,125.11,6.74348471]
[1743349022845,0.063,125.13,125.12,7.9923]
[1743349024028,0.063,125.13,125.12,9.6154]
[1743349024230,0.063,125.13,125.12,10.04188471]
[1743349027346,0.063,125.15,125.12,30.02268471]
[1743349027539,0.063,125.15,125.13,7.02]
[1743349027742,0.063,125.15,125.14,0.42648471]
[1743349029447,0.063,125.15,125.14,8.41748471]
[1743349030426,0.0001,125.15,125.14,8.41748471]
[1743349031631,0.0001,125.15,125.14,7.991]
[1743349034045,0.0001,125.15,125.13,15.0116]
[1743349039038,12.70373966,125.14,125.1,0.03]
[1743349039244,12.70373966,125.12,125.1,0.03]
[1743349039634,12.70373966,125.11,125.1,0.03]
[1743349041364,12.70373966,125.12,125.1,0.03]
[1743349043065,12.70373966,125.13,125.1,0.03]
[1743349043433,12.70373966,125.14,125.1,0.03]
[1743349045833,12.70373966,125.13,125.1,0.03]
[1743349046864,12.70373966,125.14,125.1,0.03]
[1743349047035,12.70383966,125.15,125.1,0.03]
[1743349048558,0.0001,125.15,125.1,0.45648471]
[1743349049361,12.70383966,125.15,125.11,7.9929]
[1743349053856,0.0001,125.15,125.11,7.9929]
[1743349054257,0.0001,125.15,125.11,27.9753]
[1743349054768,0.0001,125.15,125.11,29.5839]
[1743349054968,0.0001,125.15,125.12,7.02]
[1743349055569,0.0001,125.15,125.13,7.9916]
[1743349056667,0.0001,125.15,125.14,0.42648471]
[1743349057452,0.0001,125.15,125.14,154.71829514]
[1743349057776,0.0001,125.15,125.14,162.70929514]
[1743349058185,0.0001,125.15,125.14,168.79549514]
[1743349058762,0.0001,125.15,125.14,170.40409514]
[1743349059077,28.87035664,125.24,125.14,230.33689514]
[1743349059277,28.87035664,125.24,125.18,0.42648471]
[1743349059576,12.70373966,125.23,125.18,7.44648471]
[1743349059761,12.70373966,125.23,125.19,7.9878]
[1743349061061,12.70373966,125.24,125.19,7.9878]
[1743349061455,12.70373966,125.23,125.19,7.9878]
[1743349061657,12.70373966,125.21,125.18,7.02]
[1743349062068,12.70373966,125.19,125.17,7.9885]
[1743349062661,12.70373966,125.2,125.17,7.9885]
[1743349062961,8.26962314,125.23,125.17,7.9885]
[1743349063272,12.70373966,125.2,125.17,7.9885]
[1743349063657,12.70373966,125.21,125.17,7.9885]
[1743349063851,12.70373966,125.21,125.16,7.9897]
[1743349064069,26.77671043,125.24,125.16,7.9897]
[1743349064070,12.70373966,125.22,125.16,7.9897]
[1743349064272,12.70373966,125.22,125.16,27.9641]
[1743349066351,12.70373966,125.23,125.16,27.9641]
[1743349067080,12.70373966,125.22,125.16,27.9641]
[1743349069867,12.70373966,125.21,125.16,27.9641]
[1743349070185,12.70373966,125.19,125.16,7.9897]
[1743349071079,12.70373966,125.2,125.16,7.9897]
[1743349072383,12.70373966,125.19,125.16,7.9897]
[1743349072681,12.70373966,125.18,125.14,7.991]
[1743349072981,12.70373966,125.18,125.14,15.011]
[1743349074283,12.70373966,125.19,125.14,15.011]
[1743349074586,14.24703966,125.2,125.14,34.9886]
[1743349077087,12.70373966,125.19,125.14,27.9686]
[1743349077295,12.70373966,125.19,125.15,7.02]
[1743349077989,12.70373966,125.19,125.16,7.9897]
[1743349078685,12.70373966,125.18,125.16,7.9897]
[1743349079688,12.70373966,125.18,125.11,183.1545]
[1743349079689,12.70373966,125.17,125.13,7.02]
[1743349079871,12.70373966,125.16,125.13,7.02]
[1743349080071,12.70373966,125.16,125.13,15.0114]
[1743349080693,12.70373966,125.16,125.13,7.9914]